[Event "*** MasterClass Titled Tuesday Blitz"]
[Site "Chess.com"]
[Date "2017.08.01"]
[Round "1"]
[White "MateusViageiro"]
[Black "michaelq2d5"]
[Result "0-1"]
[WhiteElo "2300"]
[BlackElo "2595"]
[TimeControl "180+2"]
[EndTime "13:09:41 PDT"]
[Termination "michaelq2d5 won by resignation"]

1. d4 {[%clk 0:03:01.9]} 1... d5 {[%clk 0:02:59.5]} 2. Nf3 {[%clk 0:03:03.2]}
2... Nf6 {[%clk 0:02:59.5]} 3. g3 {[%clk 0:03:04.2]} 3... Bf5 {[%clk 0:02:56.7]}
4. Bg2 {[%clk 0:03:05.1]} 4... e6 {[%clk 0:02:57.8]} 5. O-O {[%clk 0:03:05.9]}
5... Be7 {[%clk 0:02:58.8]} 6. Nbd2 {[%clk 0:03:06.5]} 6... h6 {[%clk
0:02:58.6]} 7. c4 {[%clk 0:03:07.3]} 7... c6 {[%clk 0:02:59]} 8. b3 {[%clk
0:03:06.1]} 8... O-O {[%clk 0:02:59.2]} 9. Bb2 {[%clk 0:03:06.8]} 9... Nbd7
{[%clk 0:02:59.4]} 10. Ne5 {[%clk 0:03:07.7]} 10... a5 {[%clk 0:02:52]} 11. a4
{[%clk 0:03:05.6]} 11... Bb4 {[%clk 0:02:40.7]} 12. Ndf3 {[%clk 0:03:01.7]}
12... Rc8 {[%clk 0:02:19.4]} 13. c5 {[%clk 0:02:52.5]} 13... b6 {[%clk
0:02:16.6]} 14. Nxd7 {[%clk 0:02:48.4]} 14... Nxd7 {[%clk 0:02:16.1]} 15. cxb6
{[%clk 0:02:49.3]} 15... Qxb6 {[%clk 0:02:17.1]} 16. Rc1 {[%clk 0:02:41.7]}
16... c5 {[%clk 0:02:12.8]} 17. dxc5 {[%clk 0:02:40.6]} 17... Bxc5 {[%clk
0:02:02.3]} 18. Nd4 {[%clk 0:02:33.6]} 18... Bh7 {[%clk 0:01:42.7]} 19. Nb5
{[%clk 0:02:34.3]} 19... Rfd8 {[%clk 0:01:36.2]} 20. Qd2 {[%clk 0:02:28.8]}
20... Be7 {[%clk 0:01:06.5]} 21. Rxc8 {[%clk 0:02:25.6]} 21... Rxc8 {[%clk
0:01:06.8]} 22. Rc1 {[%clk 0:02:26.1]} 22... Rxc1+ {[%clk 0:00:58.9]} 23. Qxc1
{[%clk 0:02:26.5]} 23... Qc5 {[%clk 0:00:56.9]} 24. Qf4 {[%clk 0:02:07.5]} 24...
Bg5 {[%clk 0:00:41.6]} 25. Qd4 {[%clk 0:01:46.4]} 25... Qxd4 {[%clk 0:00:23.4]}
26. Nxd4 {[%clk 0:01:41.8]} 26... Bf6 {[%clk 0:00:23.4]} 27. e3 {[%clk
0:01:41.2]} 27... Nc5 {[%clk 0:00:24]} 28. Bf1 {[%clk 0:01:24.8]} 28... Bxd4
{[%clk 0:00:14.1]} 29. Bxd4 {[%clk 0:01:22.2]} 29... Nxb3 {[%clk 0:00:15.1]} 30.
Bc3 {[%clk 0:01:23.2]} 30... Bc2 {[%clk 0:00:15.8]} 31. Bb5 {[%clk 0:01:22]}
31... Nc5 {[%clk 0:00:16.2]} 32. Bxa5 {[%clk 0:01:20.9]} 32... Bxa4 {[%clk
0:00:16.8]} 33. Be2 {[%clk 0:01:21]} 33... Ne4 {[%clk 0:00:16]} 34. Be1 {[%clk
0:01:20.1]} 34... g6 {[%clk 0:00:15.2]} 35. f3 {[%clk 0:01:21.2]} 35... Nd6
{[%clk 0:00:15.9]} 36. Kf2 {[%clk 0:01:19.8]} 36... Bb5 {[%clk 0:00:16.7]} 37.
Bd1 {[%clk 0:01:20.6]} 37... Kg7 {[%clk 0:00:16.6]} 38. Bc3+ {[%clk 0:01:19.7]}
38... f6 {[%clk 0:00:17.9]} 39. Bc2 {[%clk 0:01:20.1]} 39... Kf7 {[%clk
0:00:18.6]} 40. Bb4 {[%clk 0:01:19.9]} 40... Nb7 {[%clk 0:00:17.9]} 41. e4
{[%clk 0:01:20.3]} 41... d4 {[%clk 0:00:17.7]} 42. Ke1 {[%clk 0:01:20]} 42...
Bc4 {[%clk 0:00:17.6]} 43. Kd2 {[%clk 0:01:20.6]} 43... e5 {[%clk 0:00:18.7]}
44. Ba4 {[%clk 0:01:20.2]} 44... Nd8 {[%clk 0:00:19.3]} 45. Bd7 {[%clk
0:01:20.1]} 45... Be6 {[%clk 0:00:19.4]} 46. Bb5 {[%clk 0:01:20.2]} 46... Ba2
{[%clk 0:00:18.6]} 47. f4 {[%clk 0:01:20.9]} 47... Ne6 {[%clk 0:00:17.9]} 48.
fxe5 {[%clk 0:01:20.2]} 48... fxe5 {[%clk 0:00:19.8]} 49. Bd7 {[%clk 0:01:19.7]}
49... Ng5 {[%clk 0:00:20]} 50. Bc6 {[%clk 0:01:06.5]} 50... Bb1 {[%clk
0:00:20.3]} 51. h4 {[%clk 0:01:01.6]} 51... Nxe4+ {[%clk 0:00:19.2]} 52. Bxe4
{[%clk 0:01:01.8]} 52... Bxe4 {[%clk 0:00:21.1]} 53. Bd6 {[%clk 0:01:01.8]}
53... Ke6 {[%clk 0:00:21.8]} 54. Bf8 {[%clk 0:01:02.5]} 54... h5 {[%clk
0:00:22.8]} 55. Bh6 {[%clk 0:01:02.7]} 55... Kd5 {[%clk 0:00:22.5]} 56. Bg7
{[%clk 0:01:02.1]} 56... Bf5 {[%clk 0:00:23.4]} 57. Ke2 {[%clk 0:00:59.9]} 57...
e4 {[%clk 0:00:24.1]} 58. Bh6 {[%clk 0:00:59.7]} 58... Bg4+ {[%clk 0:00:24.6]}
59. Kd2 {[%clk 0:01:00.5]} 59... e3+ {[%clk 0:00:25.8]} 60. Bxe3 {[%clk
0:00:59.3]} 60... dxe3+ {[%clk 0:00:26.5]} 61. Kxe3 {[%clk 0:01:00.4]} 61... Ke5
{[%clk 0:00:28.3]} 62. Kf2 {[%clk 0:00:57.6]} 62... Ke4 {[%clk 0:00:29.3]} 63.
Kg2 {[%clk 0:00:58.6]} 63... Ke3 {[%clk 0:00:30]} 64. Kg1 {[%clk 0:00:59.3]}
64... Kf3 {[%clk 0:00:32]} 65. Kh2 {[%clk 0:01:00.4]} 65... Kf2 {[%clk
0:00:33.6]} 0-1

[Event "*** MasterClass Titled Tuesday Blitz"]
[Site "Chess.com"]
[Date "2017.08.01"]
[Round "1"]
[White "dzhumagaliev"]
[Black "josiwales"]
[Result "1-0"]
[WhiteElo "2525"]
[BlackElo "2259"]
[TimeControl "180+2"]
[EndTime "13:09:43 PDT"]
[Termination "dzhumagaliev won by resignation"]

1. Nf3 {[%clk 0:03:01.9]} 1... d5 {[%clk 0:02:53.4]} 2. d4 {[%clk 0:03:03.8]}
2... Nf6 {[%clk 0:02:51.2]} 3. c4 {[%clk 0:03:05.7]} 3... c6 {[%clk 0:02:50.9]}
4. e3 {[%clk 0:03:06.8]} 4... a6 {[%clk 0:02:49.6]} 5. Nc3 {[%clk 0:03:04.8]}
5... Bg4 {[%clk 0:02:47]} 6. Qb3 {[%clk 0:03:01.3]} 6... b5 {[%clk 0:02:44.1]}
7. cxb5 {[%clk 0:02:57.4]} 7... cxb5 {[%clk 0:02:44.2]} 8. Ne5 {[%clk
0:02:58.3]} 8... e6 {[%clk 0:02:32.4]} 9. Nxg4 {[%clk 0:02:48.2]} 9... Nxg4
{[%clk 0:02:34.3]} 10. Be2 {[%clk 0:02:49.6]} 10... Nf6 {[%clk 0:02:34.9]} 11.
O-O {[%clk 0:02:43.8]} 11... Nbd7 {[%clk 0:02:31.2]} 12. a4 {[%clk 0:02:40.7]}
12... b4 {[%clk 0:02:27.8]} 13. Nb1 {[%clk 0:02:41.8]} 13... a5 {[%clk
0:02:25.7]} 14. Nd2 {[%clk 0:02:41.3]} 14... Rc8 {[%clk 0:02:26.1]} 15. Nf3
{[%clk 0:02:42.1]} 15... Bd6 {[%clk 0:02:25.7]} 16. Ba6 {[%clk 0:02:42.4]} 16...
Rc7 {[%clk 0:02:24.1]} 17. Bd2 {[%clk 0:02:41.4]} 17... O-O {[%clk 0:02:22.2]}
18. Rfc1 {[%clk 0:02:42.5]} 18... Nb6 {[%clk 0:02:20.2]} 19. Qd3 {[%clk
0:02:37.9]} 19... Ne4 {[%clk 0:02:20.4]} 20. Be1 {[%clk 0:02:35.2]} 20... f5
{[%clk 0:02:21.1]} 21. b3 {[%clk 0:02:31.1]} 21... g5 {[%clk 0:02:16.9]} 22. Ne5
{[%clk 0:02:27.5]} 22... Bxe5 {[%clk 0:02:16]} 23. dxe5 {[%clk 0:02:28.7]} 23...
Nd7 {[%clk 0:02:16.1]} 24. Qb5 {[%clk 0:02:04.7]} 24... Nxe5 {[%clk 0:02:01.1]}
25. f3 {[%clk 0:02:05.6]} 25... Nc3 {[%clk 0:01:33.5]} 26. Qxa5 {[%clk
0:01:41.7]} 26... Nc6 {[%clk 0:01:33.8]} 27. Qb6 {[%clk 0:01:34.5]} 27... d4
{[%clk 0:01:24.6]} 28. Bc4 {[%clk 0:01:22.8]} 28... Re8 {[%clk 0:01:12.7]} 29.
exd4 {[%clk 0:01:08.4]} 29... Qxd4+ {[%clk 0:01:10.1]} 30. Bf2 {[%clk
0:00:56.5]} 30... Qxb6 {[%clk 0:01:08.2]} 31. Bxb6 {[%clk 0:00:58.4]} 31... Rd7
{[%clk 0:01:04.5]} 32. a5 {[%clk 0:00:42]} 32... Ne5 {[%clk 0:00:57.9]} 33. Bf1
{[%clk 0:00:36.1]} 33... g4 {[%clk 0:00:19.8]} 34. fxg4 {[%clk 0:00:34.1]} 34...
fxg4 {[%clk 0:00:19.8]} 35. a6 {[%clk 0:00:34.9]} 35... Rf8 {[%clk 0:00:17.8]}
36. Re1 {[%clk 0:00:31.2]} 36... Ng6 {[%clk 0:00:11.1]} 37. Rxe6 {[%clk
0:00:27.1]} 37... Nf4 {[%clk 0:00:11.7]} 38. Re3 {[%clk 0:00:26.9]} 38... Rd2
{[%clk 0:00:12.5]} 39. a7 {[%clk 0:00:24.5]} 39... Na2 {[%clk 0:00:11]} 40. Rg3
{[%clk 0:00:20.4]} 40... h5 {[%clk 0:00:10.3]} 41. Bc7 {[%clk 0:00:21.1]} 41...
Nd5 {[%clk 0:00:10.4]} 42. Bb8 {[%clk 0:00:21.3]} 42... Nb6 {[%clk 0:00:08.7]}
43. h3 {[%clk 0:00:21.8]} 43... Kh7 {[%clk 0:00:08.1]} 44. hxg4 {[%clk
0:00:23.2]} 44... h4 {[%clk 0:00:09.4]} 45. Rh3 {[%clk 0:00:24.7]} 45... Kg6
{[%clk 0:00:10.7]} 46. Rxh4 {[%clk 0:00:25.9]} 46... Rff2 {[%clk 0:00:11.7]} 47.
Rh5 {[%clk 0:00:26]} 47... Na8 {[%clk 0:00:11.2]} 48. Rh8 {[%clk 0:00:24.9]}
48... Nc3 {[%clk 0:00:11.6]} 49. Bg3 {[%clk 0:00:25.4]} 49... Ne2+ {[%clk
0:00:12.5]} 50. Bxe2 {[%clk 0:00:20.6]} 50... Rfxe2 {[%clk 0:00:14.4]} 51. Rxa8
{[%clk 0:00:21.3]} 51... Rxg2+ {[%clk 0:00:15.1]} 52. Kf1 {[%clk 0:00:22.1]}
52... Rxg3 {[%clk 0:00:12.7]} 53. Rg8+ {[%clk 0:00:22.9]} 53... Kf6 {[%clk
0:00:13.8]} 54. a8=Q {[%clk 0:00:24.3]} 1-0

[Event "*** MasterClass Titled Tuesday Blitz"]
[Site "Chess.com"]
[Date "2017.08.01"]
[Round "1"]
[White "HouseOfDurin"]
[Black "matein28"]
[Result "0-1"]
[WhiteElo "1854"]
[BlackElo "2398"]
[TimeControl "180+2"]
[EndTime "13:09:56 PDT"]
[Termination "matein28 won on time"]

1. d4 {[%clk 0:01:40.3]} 1... d5 {[%clk 0:03:00.4]} 2. Bg5 {[%clk 0:01:41.6]}
2... c6 {[%clk 0:02:57.3]} 3. g3 {[%clk 0:01:39]} 3... Nd7 {[%clk 0:02:58.5]} 4.
Bg2 {[%clk 0:01:38.2]} 4... Qb6 {[%clk 0:02:59.4]} 5. b3 {[%clk 0:01:38.3]} 5...
e5 {[%clk 0:02:59.4]} 6. dxe5 {[%clk 0:01:33.3]} 6... Nxe5 {[%clk 0:03:00.2]} 7.
Be3 {[%clk 0:01:33.9]} 7... Qc7 {[%clk 0:02:57.7]} 8. Nf3 {[%clk 0:01:28.7]}
8... Bd6 {[%clk 0:02:58.1]} 9. O-O {[%clk 0:01:25.5]} 9... Nf6 {[%clk
0:02:59.5]} 10. Nbd2 {[%clk 0:01:18.3]} 10... O-O {[%clk 0:02:59.7]} 11. c4
{[%clk 0:01:19.3]} 11... dxc4 {[%clk 0:02:58.9]} 12. Nxc4 {[%clk 0:01:19.8]}
12... Nxc4 {[%clk 0:02:59.8]} 13. bxc4 {[%clk 0:01:21.7]} 13... Be6 {[%clk
0:03:01.1]} 14. Qc2 {[%clk 0:01:19.9]} 14... b6 {[%clk 0:02:58.9]} 15. Rac1
{[%clk 0:01:19.2]} 15... c5 {[%clk 0:03:00]} 16. Ng5 {[%clk 0:01:13.1]} 16...
Rae8 {[%clk 0:02:51.9]} 17. Bd5 {[%clk 0:00:51.7]} 17... Bxd5 {[%clk 0:02:44.4]}
18. cxd5 {[%clk 0:00:51.8]} 18... h6 {[%clk 0:02:45.8]} 19. Nf3 {[%clk
0:00:34.1]} 19... Nxd5 {[%clk 0:02:46]} 20. Bd2 {[%clk 0:00:31.5]} 20... Ne7
{[%clk 0:02:19.7]} 21. Rfd1 {[%clk 0:00:29.7]} 21... Nc6 {[%clk 0:02:19.2]} 22.
Bc3 {[%clk 0:00:29.3]} 22... Rd8 {[%clk 0:02:14.4]} 23. e4 {[%clk 0:00:27.5]}
23... Ne5 {[%clk 0:02:11.2]} 24. Nxe5 {[%clk 0:00:22.8]} 24... Bxe5 {[%clk
0:02:13.2]} 25. f4 {[%clk 0:00:19.1]} 25... Bxc3 {[%clk 0:02:03.7]} 26. Qxc3
{[%clk 0:00:21]} 26... Qe7 {[%clk 0:02:02.6]} 27. e5 {[%clk 0:00:21.4]} 27...
Qe6 {[%clk 0:02:04]} 28. Qa3 {[%clk 0:00:16.2]} 28... Rd7 {[%clk 0:02:00]} 29.
Rxd7 {[%clk 0:00:09.6]} 29... Qxd7 {[%clk 0:02:02]} 30. Qb3 {[%clk 0:00:07.7]}
30... Rd8 {[%clk 0:02:01.5]} 31. Re1 {[%clk 0:00:08.6]} 31... Qd4+ {[%clk
0:02:01.9]} 32. Kg2 {[%clk 0:00:09.5]} 32... Qd5+ {[%clk 0:01:58.5]} 33. Qxd5
{[%clk 0:00:10]} 33... Rxd5 {[%clk 0:02:00.5]} 34. Re2 {[%clk 0:00:10.5]} 34...
Kf8 {[%clk 0:02:00.7]} 35. Kf3 {[%clk 0:00:11.7]} 35... g5 {[%clk 0:01:56]} 36.
Ke4 {[%clk 0:00:12.3]} 36... Rd4+ {[%clk 0:01:54.9]} 37. Kf5 {[%clk 0:00:13.5]}
37... gxf4 {[%clk 0:01:56.4]} 38. gxf4 {[%clk 0:00:15.4]} 38... Ke7 {[%clk
0:01:57.9]} 39. e6 {[%clk 0:00:14.8]} 39... Rd5+ {[%clk 0:01:57.5]} 40. Kg4
{[%clk 0:00:02.5]} 40... fxe6 {[%clk 0:01:57.5]} 41. h4 {[%clk 0:00:04.2]} 41...
h5+ {[%clk 0:01:58.2]} 42. Kg3 {[%clk 0:00:05]} 42... Rd3+ {[%clk 0:01:58.7]}
43. Kf2 {[%clk 0:00:06.2]} 43... Kf7 {[%clk 0:02:00.1]} 44. Re5 {[%clk
0:00:06.7]} 44... Rd5 {[%clk 0:01:58.6]} 45. Rg5 {[%clk 0:00:05.2]} 45... Rd2+
{[%clk 0:01:37.7]} 46. Ke3 {[%clk 0:00:05.7]} 46... Rxa2 {[%clk 0:01:38.1]} 47.
Rxh5 {[%clk 0:00:06.8]} 47... Rh2 {[%clk 0:01:30.4]} 48. Rh7+ {[%clk 0:00:06.1]}
48... Kg6 {[%clk 0:01:31.8]} 49. Rxa7 {[%clk 0:00:07.3]} 49... Rxh4 {[%clk
0:01:32.2]} 50. Ra6 {[%clk 0:00:08.8]} 50... Rh3+ {[%clk 0:01:33.7]} 51. Ke4
{[%clk 0:00:10.2]} 51... Rb3 {[%clk 0:01:35.4]} 52. Ke5 {[%clk 0:00:11.4]} 52...
Re3+ {[%clk 0:01:27.4]} 53. Kd6 {[%clk 0:00:12.1]} 53... Kf5 {[%clk 0:01:28.7]}
54. Rxb6 {[%clk 0:00:12.4]} 54... Kxf4 {[%clk 0:01:29.7]} 55. Kxc5 {[%clk
0:00:13.4]} 55... e5 {[%clk 0:01:28.8]} 56. Rf6+ {[%clk 0:00:12.1]} 56... Ke4
{[%clk 0:01:28.8]} 57. Kc4 {[%clk 0:00:10.9]} 57... Rd3 {[%clk 0:01:20.4]} 58.
Re6 {[%clk 0:00:11.3]} 58... Rd8 {[%clk 0:01:17.7]} 59. Kc3 {[%clk 0:00:11.4]}
59... Kf4 {[%clk 0:01:17.9]} 60. Rf6+ {[%clk 0:00:10.2]} 60... Ke3 {[%clk
0:01:18.8]} 61. Rh6 {[%clk 0:00:07.6]} 61... Rc8+ {[%clk 0:01:16.5]} 62. Kb2
{[%clk 0:00:08.8]} 62... e4 {[%clk 0:01:17.2]} 63. Rh3+ {[%clk 0:00:07.7]} 63...
Kd2 {[%clk 0:01:17.8]} 64. Rh2+ {[%clk 0:00:08.7]} 64... Kd3 {[%clk 0:01:19.1]}
65. Rh7 {[%clk 0:00:08]} 65... e3 {[%clk 0:01:20]} 66. Rd7+ {[%clk 0:00:09.5]}
66... Ke2 {[%clk 0:01:21.2]} 67. Re7 {[%clk 0:00:06.4]} 67... Kf2 {[%clk
0:01:22.2]} 68. Kb3 {[%clk 0:00:07.7]} 68... e2 {[%clk 0:01:22.1]} 69. Re8
{[%clk 0:00:09.6]} 69... Rxe8 {[%clk 0:01:14.7]} 0-1

[Event "*** MasterClass Titled Tuesday Blitz"]
[Site "Chess.com"]
[Date "2017.08.01"]
[Round "1"]
[White "Rbrrt"]
[Black "ChessQueen"]
[Result "0-1"]
[WhiteElo "2290"]
[BlackElo "2571"]
[TimeControl "180+2"]
[EndTime "13:10:08 PDT"]
[Termination "ChessQueen won by resignation"]

1. e4 {[%clk 0:03:01.9]} 1... e5 {[%clk 0:03:00]} 2. Nf3 {[%clk 0:03:02.8]} 2...
Nc6 {[%clk 0:02:59.9]} 3. d4 {[%clk 0:03:04.1]} 3... exd4 {[%clk 0:02:59.4]} 4.
Nxd4 {[%clk 0:03:06]} 4... Nf6 {[%clk 0:03:00.5]} 5. Nxc6 {[%clk 0:03:05.6]}
5... bxc6 {[%clk 0:03:01.6]} 6. e5 {[%clk 0:03:07.2]} 6... Qe7 {[%clk
0:03:02.7]} 7. Qe2 {[%clk 0:03:08.8]} 7... Nd5 {[%clk 0:03:03.7]} 8. c4 {[%clk
0:03:10.5]} 8... Nb6 {[%clk 0:03:04.7]} 9. Nc3 {[%clk 0:03:11.4]} 9... Qe6
{[%clk 0:03:05.8]} 10. Qe4 {[%clk 0:03:12.6]} 10... Bb7 {[%clk 0:03:03.9]} 11.
Bd3 {[%clk 0:02:49.8]} 11... O-O-O {[%clk 0:02:57]} 12. O-O {[%clk 0:02:50.6]}
12... h5 {[%clk 0:02:48.2]} 13. b3 {[%clk 0:02:45.7]} 13... h4 {[%clk
0:02:41.3]} 14. Bb2 {[%clk 0:02:38.1]} 14... g5 {[%clk 0:02:34.8]} 15. Qe3
{[%clk 0:02:29]} 15... g4 {[%clk 0:02:29.3]} 16. Ne4 {[%clk 0:02:26.9]} 16... c5
{[%clk 0:01:25.3]} 17. Rad1 {[%clk 0:02:07.5]} 17... Kb8 {[%clk 0:00:55.8]} 18.
a4 {[%clk 0:01:58.8]} 18... Nc8 {[%clk 0:00:46.5]} 19. Ng5 {[%clk 0:01:18.9]}
19... Qe7 {[%clk 0:00:41.7]} 20. Ne4 {[%clk 0:00:56.6]} 20... Qe6 {[%clk
0:00:33.1]} 21. Ng5 {[%clk 0:00:55.2]} 21... Qe7 {[%clk 0:00:33.5]} 22. Ne4
{[%clk 0:00:56]} 22... g3 {[%clk 0:00:24.9]} 23. fxg3 {[%clk 0:00:56.2]} 23...
hxg3 {[%clk 0:00:25.7]} 24. Qxg3 {[%clk 0:00:53.1]} 24... Bh6 {[%clk 0:00:21.6]}
25. Nf6 {[%clk 0:00:40.4]} 25... Qe6 {[%clk 0:00:21]} 26. Bf5 {[%clk 0:00:35.8]}
26... Qb6 {[%clk 0:00:21.4]} 27. Rxd7 {[%clk 0:00:25.2]} 27... Bc6 {[%clk
0:00:19.2]} 28. Rxf7 {[%clk 0:00:17.7]} 28... Rd2 {[%clk 0:00:19.2]} 29. Be4
{[%clk 0:00:18.3]} 29... Rxb2 {[%clk 0:00:19.1]} 30. Bxc6 {[%clk 0:00:18.6]}
30... Qxc6 {[%clk 0:00:20.3]} 31. Nd7+ {[%clk 0:00:20.1]} 31... Ka8 {[%clk
0:00:21.3]} 32. Qf3 {[%clk 0:00:20.7]} 32... Qxf3 {[%clk 0:00:21.1]} 33. R1xf3
{[%clk 0:00:22.6]} 33... Rg8 {[%clk 0:00:21.8]} 34. g3 {[%clk 0:00:23.4]} 34...
Bg5 {[%clk 0:00:22.1]} 35. Nxc5 {[%clk 0:00:23.7]} 35... Be7 {[%clk 0:00:22.9]}
36. Ne4 {[%clk 0:00:24.4]} 36... Re2 {[%clk 0:00:23.1]} 37. R3f4 {[%clk
0:00:20.4]} 37... Re3 {[%clk 0:00:24]} 38. Nf6 {[%clk 0:00:15.5]} 38... Rd8
{[%clk 0:00:21.6]} 39. Nd5 {[%clk 0:00:16.6]} 39... Rxd5 {[%clk 0:00:21.9]} 40.
cxd5 {[%clk 0:00:17.7]} 40... Rxe5 {[%clk 0:00:23.5]} 41. h4 {[%clk 0:00:15.4]}
41... Bc5+ {[%clk 0:00:21.7]} 42. Kg2 {[%clk 0:00:16.5]} 42... Bd6 {[%clk
0:00:19.8]} 43. R4f5 {[%clk 0:00:17]} 43... Re3 {[%clk 0:00:20.7]} 44. Rf3
{[%clk 0:00:18.1]} 44... Re2+ {[%clk 0:00:21.8]} 45. Kh3 {[%clk 0:00:18.7]}
45... Ne7 {[%clk 0:00:21.5]} 46. h5 {[%clk 0:00:19.7]} 46... Re1 {[%clk
0:00:22.4]} 47. Rf2 {[%clk 0:00:18.7]} 47... Rh1+ {[%clk 0:00:22.7]} 48. Rh2
{[%clk 0:00:19.5]} 48... Rg1 {[%clk 0:00:24.3]} 49. Rg2 {[%clk 0:00:14]} 49...
Rh1+ {[%clk 0:00:25]} 50. Rh2 {[%clk 0:00:15.3]} 50... Rg1 {[%clk 0:00:26.2]}
51. Rg2 {[%clk 0:00:04.6]} 51... Rd1 {[%clk 0:00:18.1]} 52. h6 {[%clk
0:00:03.9]} 52... Rxd5 {[%clk 0:00:17.6]} 53. g4 {[%clk 0:00:05.4]} 53... Ng6
{[%clk 0:00:17.9]} 54. Rg7 {[%clk 0:00:06.1]} 54... Rd3+ {[%clk 0:00:18.9]} 55.
Rg3 {[%clk 0:00:06.7]} 55... Rxg3+ {[%clk 0:00:19.9]} 56. Kh2 {[%clk 0:00:08.2]}
56... Rxg4+ {[%clk 0:00:21.3]} 57. Kh3 {[%clk 0:00:09.2]} 57... Rh4+ {[%clk
0:00:22.6]} 58. Kg2 {[%clk 0:00:10.1]} 58... Rxh6 {[%clk 0:00:24.2]} 59. Kf3
{[%clk 0:00:11.8]} 0-1

[Event "*** MasterClass Titled Tuesday Blitz"]
[Site "Chess.com"]
[Date "2017.08.01"]
[Round "1"]
[White "TastyFrenchFries"]
[Black "djogrodek1"]
[Result "0-1"]
[WhiteElo "1904"]
[BlackElo "2403"]
[TimeControl "180+2"]
[EndTime "13:10:08 PDT"]
[Termination "djogrodek1 won by resignation"]

1. e4 {[%clk 0:02:57]} 1... c6 {[%clk 0:03:01.1]} 2. d4 {[%clk 0:02:54]} 2... d5
{[%clk 0:03:03]} 3. Nc3 {[%clk 0:02:54.7]} 3... dxe4 {[%clk 0:03:04.1]} 4. Nxe4
{[%clk 0:02:56.6]} 4... Bf5 {[%clk 0:03:05.7]} 5. Ng3 {[%clk 0:02:57.8]} 5...
Bg6 {[%clk 0:03:07]} 6. h4 {[%clk 0:02:59.1]} 6... h6 {[%clk 0:03:08.3]} 7. Nf3
{[%clk 0:03:00.6]} 7... e6 {[%clk 0:03:09]} 8. Ne5 {[%clk 0:02:58.9]} 8... Bh7
{[%clk 0:03:10.5]} 9. Bc4 {[%clk 0:02:50.5]} 9... Nd7 {[%clk 0:03:08.2]} 10. Qe2
{[%clk 0:02:43]} 10... Nxe5 {[%clk 0:03:08]} 11. dxe5 {[%clk 0:02:43.4]} 11...
Be7 {[%clk 0:03:08.8]} 12. h5 {[%clk 0:02:40.7]} 12... Qb6 {[%clk 0:02:57.7]}
13. c3 {[%clk 0:02:33]} 13... O-O-O {[%clk 0:02:43.2]} 14. a4 {[%clk 0:02:22.9]}
14... Qc7 {[%clk 0:02:40.6]} 15. f4 {[%clk 0:01:56.6]} 15... Bf8 {[%clk
0:02:28.8]} 16. Be3 {[%clk 0:01:56]} 16... Kb8 {[%clk 0:02:27.6]} 17. Qf2 {[%clk
0:01:50.9]} 17... c5 {[%clk 0:02:24.3]} 18. O-O {[%clk 0:01:29.5]} 18... Ne7
{[%clk 0:02:22.3]} 19. b4 {[%clk 0:01:27.3]} 19... Nd5 {[%clk 0:02:20.5]} 20.
Bxc5 {[%clk 0:01:19.6]} 20... Bxc5 {[%clk 0:02:21.2]} 21. Qxc5 {[%clk
0:01:20.7]} 21... Qxc5+ {[%clk 0:02:18.9]} 22. bxc5 {[%clk 0:01:22.6]} 22... Ne3
{[%clk 0:02:20.3]} 23. Be2 {[%clk 0:01:03.7]} 23... Nxf1 {[%clk 0:02:21.4]} 24.
Nxf1 {[%clk 0:01:04.7]} 24... Be4 {[%clk 0:02:16.5]} 25. a5 {[%clk 0:00:54.9]}
25... a6 {[%clk 0:02:17]} 26. Ra4 {[%clk 0:00:52.5]} 26... Bc6 {[%clk
0:02:16.7]} 27. Rb4 {[%clk 0:00:52.6]} 27... Rd5 {[%clk 0:02:17.5]} 28. Bxa6
{[%clk 0:00:46.8]} 28... Ka7 {[%clk 0:02:08.3]} 29. Be2 {[%clk 0:00:36.8]} 29...
Rxc5 {[%clk 0:02:09.3]} 30. Nd2 {[%clk 0:00:19.8]} 30... Rd8 {[%clk 0:02:03.5]}
31. Nb3 {[%clk 0:00:20.2]} 31... Rxc3 {[%clk 0:02:04.5]} 32. Nd4 {[%clk
0:00:19.3]} 32... Rd5 {[%clk 0:01:19.6]} 33. a6 {[%clk 0:00:19]} 33... Rd7
{[%clk 0:00:47.7]} 34. axb7 {[%clk 0:00:15.9]} 34... Rxb7 {[%clk 0:00:48.1]} 35.
Rxb7+ {[%clk 0:00:13.8]} 35... Kxb7 {[%clk 0:00:47.2]} 36. Nxc6 {[%clk
0:00:06.8]} 36... Kxc6 {[%clk 0:00:49.1]} 37. Bf3+ {[%clk 0:00:08.1]} 37... Kc5
{[%clk 0:00:49.5]} 38. Kf2 {[%clk 0:00:10]} 38... Kd4 {[%clk 0:00:50.6]} 39. Kg3
{[%clk 0:00:11.4]} 39... Ke3 {[%clk 0:00:51.7]} 40. Kg4 {[%clk 0:00:12.4]} 40...
Rc4 {[%clk 0:00:43.9]} 41. g3 {[%clk 0:00:12.9]} 41... Kf2 {[%clk 0:00:45.5]}
42. Be4 {[%clk 0:00:09.9]} 42... Rc3 {[%clk 0:00:46.3]} 43. f5 {[%clk
0:00:09.9]} 43... Rxg3+ {[%clk 0:00:47.7]} 44. Kf4 {[%clk 0:00:11.2]} 44... Rg5
{[%clk 0:00:45.2]} 45. fxe6 {[%clk 0:00:11.7]} 45... fxe6 {[%clk 0:00:47.1]} 46.
Bg6 {[%clk 0:00:12.9]} 46... Ke2 {[%clk 0:00:43.8]} 47. Ke4 {[%clk 0:00:12.4]}
47... Kd2 {[%clk 0:00:44.3]} 48. Kd4 {[%clk 0:00:13.8]} 48... Kc1 {[%clk
0:00:43.5]} 49. Bf7 {[%clk 0:00:13.9]} 49... Kd2 {[%clk 0:00:35.9]} 50. Bxe6
{[%clk 0:00:15.1]} 50... Rxh5 {[%clk 0:00:37.5]} 51. Bf7 {[%clk 0:00:16.2]}
51... Rh4+ {[%clk 0:00:38.3]} 52. Kd5 {[%clk 0:00:16.2]} 52... Ke3 {[%clk
0:00:38.2]} 53. e6 {[%clk 0:00:16.7]} 53... Rd4+ {[%clk 0:00:39.2]} 54. Ke5
{[%clk 0:00:17.5]} 54... Re4+ {[%clk 0:00:39.5]} 55. Kf5 {[%clk 0:00:19.1]}
55... g5 {[%clk 0:00:37.4]} 56. Kf6 {[%clk 0:00:18.4]} 56... g4 {[%clk
0:00:32.9]} 57. e7 {[%clk 0:00:19.7]} 57... Rxe7 {[%clk 0:00:26.1]} 58. Kxe7
{[%clk 0:00:21.6]} 58... g3 {[%clk 0:00:28]} 59. Bd5 {[%clk 0:00:21.6]} 59... h5
{[%clk 0:00:29.9]} 60. Kf6 {[%clk 0:00:21]} 60... h4 {[%clk 0:00:31.4]} 61. Bg2
{[%clk 0:00:15.3]} 61... Kf2 {[%clk 0:00:32.3]} 62. Bh3 {[%clk 0:00:14]} 62...
g2 {[%clk 0:00:33.6]} 63. Bxg2 {[%clk 0:00:05.5]} 63... Kxg2 {[%clk 0:00:35.5]}
64. Kg5 {[%clk 0:00:07.2]} 64... h3 {[%clk 0:00:36]} 65. Kg4 {[%clk 0:00:09.1]}
65... h2 {[%clk 0:00:37.9]} 0-1